Workbook

Sheet 草案封面
A3: 陆丰市2023年预算调整草案
A5: 编制单位：陆丰市财政局
A6: 编制时间：二○二三年十二月

Sheet 一般公共预算调整表
A1: 陆丰市2023年一般公共预算调整表（草案）
A2: 附表1 | J2: 单位：万元 | K2: 单位：万元
A3: 收 入 | B3: 年初预算数 | C3: 调整数 | D3: 调整后预算数 | E3: 增加额 | F3: 增长% | G3: 支 出 | H3: 年初预算数 | I3: 调整数 | J3: 调整后预算数 | K3: 增加额 | L3: 增长%
A5: 一、一般公共预算收入 | B5: 125840 | C5: =C6+C7 -> 3660 | D5: 129500 | E5: =D5-B5 -> 3660 | F5: =E5/B5*100 -> 2.9 | G5: 一、一般公共预算支出 | H5: =H6+H7 -> 929181 | I5: -28537 | J5: =J6+J7 -> 900644
A6: （一）税收收入 | B6: 63000 | C6: -3000 | D6: =B6+C6 -> 60000 | G6: （一）本级公共预算支出 | H6: 611889 | I6: -28537 | J6: =H6+I6 -> 583352
A7: （二）非税收入 | B7: 62840 | C7: 6660 | D7: 69500 | G7: （二）上级追加及提前下达资金、结转支出资金 | H7: 317292 | J7: 317292
A8: 二、上级补助收入 | B8: =SUM(B9,B17,B22,B26) -> 615667 | C8: =SUM(C9,C17) -> 10000 | D8: 625667 | G8: 二、上解上级支出 | H8: =SUM(H9:H11) -> 29544 | J8: =SUM(J9:J11) -> 29544
A9: （一）可支配财力补助 | B9: =SUM(B10:B16) -> 244715 | C9: =SUM(C10:C16) -> 10000 | D9: 254715 | E9: =D9-B9 -> 10000 | F9: =E9/B9*100 -> 4.1 | G9: （一）上解省基数及专项借款 | H9: 25821 | J9: 25821
A10: 1、税收返还 | B10: 10181 | D10: 10181 | E10: 0 | G10: （二）上缴省临时救助借款
A11: 2、均衡性转移支付 | B11: 103065 | D11: 103065 | E11: 0 | F11: =E11/B11*100 -> 0.0 | G11: （三）上划法院、检察院经费基数 | H11: 3723 | J11: 3723
A12: 3、县级基本财力保障 | B12: 78446 | D12: 78446 | G12: 三、安排预算稳定调节基金
A13: 4、固定数据补助支出 | B13: 14349 | D13: 14349 | E13: 0 | F13: 0.0 | G13: 四、地方债券转货支出
A14: 5、企业事业单位划转补助收入（含工商质监） | B14: 4408 | D14: 4408 | E14: 0 | F14: 0.0 | G14: 五、地方债券还本支出 | H14: 10654 | J14: 10654
A15: 6、其他转移性收入（革命老区转移支付等） | B15: 17716 | D15: 17716 | E15: 0 | F15: 0.0
A16: 7、上级追加补助资金 | B16: 16550 | C16: 10000 | D16: 26550 | E16: 10000 | F16: 60.4
A17: （二）不可支配财力补助（上级追加和提前下达资金） | B17: 290952 | D17: 290952
A18: 三、调入资金（基金收入等） | B18: 100000 | C18: -75000 | D18: 25000 | E18: =D18-B18 -> -75000
A19: 四、调入预算稳定调节基金 | B19: 25878 | C19: -24297 | D19: 1581
A20: 五、收回存量资金统筹收入 | B20: =B21+B22 -> 80000 | C20: =C21+C22 -> 65000 | D20: 145000
A21: 1、收回统筹存量资金 | B21: 30000 | C21: 65000 | D21: 95000
A22: 2、本年专项资金统筹 | B22: 50000 | D22: 50000
A23: 六、债务收入 | B23: =B24+B25 -> 45654 | C23: =C24+C25 -> -7900 | D23: 37754
A24: 1、地方政府债券转贷收入（含置换债券） | B24: 45654 | C24: -7900 | D24: 37754
A25: 2、上级临时救助借款 | D25: 0
A26: 七、调剂使用上级补助 | B26: 30000 | D26: 30000
A27: 八、上年结转收入 | B27: 26340 | D27: 26340
A28: 1、上年结转 | B28: 26340 | D28: 26340 | G28: 六、财政总支出 | H28: =H5+H8+H12+H14 -> 969379 | J28: =J5+J8+J12+J14 -> 940842
A29: 2、净结余 | D29: 0 | G29: 七、剔除上级追加后总支出 | H29: =H28-H7 -> 652087 | J29: =J28-J7 -> 623550
A30: 本级可安排财力合计 | B30: =B5+B9+B18+B19+B20+B26+B23+B29 -> 652087 | C30: -28537 | D30: =D5+D9+D18+D19+D20+D26+D23+D29 -> 623550 | E30: =E5+#REF!+E9+#REF! ->  | F30: =E30/B30*100 ->  | G30: 八、年终结余
A31: 加：不可支配财力补助 | B31: 290952 | D31: 290952 | G31: 其中：结转下年支出
A32: 上年结转 | B32: 26340 | D32: 26340 | G32: 净结余
A33: 合 计 | B33: =B30+B31+B32 -> 969379 | C33: =C30+C31+C32 -> -28537 | D33: =D30+D31+D32 -> 940842 | G33: 合 计 | H33: =H28+H30 -> 969379 | J33: =J28+J30 -> 940842 | K33: =#REF!+K30 ->  | L33: =#REF!+L30 -> 
A142: 重大公共卫生项目 | G142: 376 | M142: 新生儿缺陷防控，防控中心、艾滋病等防治经费
M148: 四术经费、流动人口计生经费、考核、孕前检查等
G175: 1000

Sheet 一般公共预算支出调整表
A1: 陆丰市2023年一般公共预算本级支出调整预算表(草案）
A2: 附表2 | D2: 单位：万元
A3: 项 目 | B3: 年初本级预算数 | C3: 调整金额 | D3: 调整后本级预算数
A5: 一般公共预算支出合计 | B5: =SUM(B6:B26) -> 611889 | C5: =SUM(C6:C26) -> -28,537 | D5: =SUM(D6:D11,D12,D13:D15,D16,D17:D26) -> 583352
A6: 一、一般公共服务 | B6: 66419 | D6: =B6+C6 -> 66419
A7: 二、公共安全 | B7: 54888 | D7: 54888
A8: 三、教育 | B8: 182558 | D8: 182558
A9: 四、科学技术 | B9: 1658 | D9: 1658
A10: 五、文化体育与传媒 | B10: 10687 | D10: 10687
A11: 六、社会保障和就业 | B11: 92806 | D11: 92806
A12: 七、医疗卫生 | B12: 55969 | D12: 55969
A13: 八、节能环保 | B13: 6006 | D13: 6006
A14: 九、城乡社区 | B14: 30415 | D14: 30415
A15: 十、农林水 | B15: 15770 | C15: 7000 | D15: 22770
A16: 十一、交通运输 | B16: 14931 | D16: 14931
A17: 十二、资源勘探电力信息等 | B17: 1129 | D17: 1129
A18: 十三、商业服务业等 | B18: 1580 | D18: 1580
A19: 十四、金融支出 | D19: 0
A20: 十五、国土资源气象等 | B20: 5995 | D20: 5995
A21: 十六、住房保障支出 | B21: 20301 | D21: 20301
A22: 十七、粮油物资储备 | B22: 3200 | D22: 3200
A23: 十八、灾害防治及应急管理 | B23: 2703 | D23: 2703
A24: 十九、预备费 | B24: 2000 | D24: 2000
A25: 二十、债务付息及发行费支出 | B25: 4000 | D25: 4000
A26: 二十一、其他支出 | B26: 38874 | C26: -35537 | D26: 3337
A140: 重大公共卫生项目

Sheet 政府性基金调整表
A1: 陆丰市2023年政府性基金预算调整表（草案）
A2: 附表3 | I2: 单位：万元
A3: 收入项目 | B3: 年初预算数 | C3: 调整数 | D3: 调整后预算数 | F3: 年初预算数 | G3: 调整数 | I3: 调整后预算数
E4: 支出项目
G5: 追加（减）安排 | H5: 债券资金
A6: 一、基金预算收入 | B6: =SUM(B7:B24) -> 202,260 | C6: =SUM(C7:C23) -> -92,000 | D6: 110,260 | E6: 一、基金预算支出 | F6: =SUM(F7:F26) -> 413,861 | G6: =SUM(G7:G26) -> -17,000 | H6: 4,000 | I6: 400,861
A7: 1、国家电影事业发展专项资金收入 | D7: =B7+C7 -> 0 | E7: 1、国家电影事业发展专项资金相关支出
A8: 2、大中型水库移民后期扶持基金收入 | D8: =B8+C8 -> 0 | E8: 2、大中型水库移民后期扶持基金支出 | F8: 3,200 | I8: =F8+G8+H8 -> 3,200
A9: 3、小型水库移民扶助基金收入 | D9: 0 | E9: 3、小型水库移民扶助基金相关支出 | F9: 105 | I9: =F9+G9+H9 -> 105
A10: 4、国有土地使用权出让收入 | B10: 192,000 | C10: -92,000 | D10: =B10+C10 -> 100,000 | E10: 4、政府住房基金相关支出 | I10: 0
A11: 5、城市公用事业附加收入 | D11: =B11+C11 -> 0 | E11: 5、国有土地使用权出让相关支出 | F11: 70,801 | G11: -6,000 | I11: 64,801
A12: 6、国有土地收益基金收入 | B12: 1,500 | D12: 1,500 | E12: 6、城市公用事业附加相关支出 | F12: 0 | I12: 0
A13: 7、农业土地开发资金收入 | B13: 500 | D13: 500 | E13: 7、国有土地收益基金相关支出 | I13: 0
A14: 8、新增建设用地土地有偿使用费收入 | D14: 0 | E14: 8、农业土地开发资金相关支出 | I14: 0
A15: 9、城市基础设施配套费收入 | B15: 4,000 | D15: 4,000 | E15: 9、新增建设用地有偿使用费支出 | I15: 0
A16: 10、污水处理费收入 | B16: 3,000 | D16: 3,000 | E16: 10、城市基础设施配套费相关支出 | F16: 4,000 | G16: -4,000 | I16: 0
A17: 11、大中型水库库区基金收入 | D17: 0 | E17: 11、大中型水库库区基金相关支出 | F17: 25 | I17: 25
A18: 12、港口建设费收入 | D18: 0 | E18: 12、港口建设费相关支出 | I18: 0
A19: 14、散装水泥专项资金收入 | D19: 0 | E19: 13、无线电频率占用费安排的支出 | I19: 0
A20: 15、新型墙体材料专项基金收入 | D20: 0 | E20: 14、散装水泥专项资金相关支出 | I20: 0
A21: 16、旅游发展基金收入 | B21: 0 | D21: 0 | E21: 15、新型墙体材料专项基金相关支出 | I21: 0
A22: 17、彩票公益金收入 | B22: 1,260 | D22: 1,260 | E22: 16、彩票公益金相关支出 | F22: =1670+1060 -> 2,730 | I22: 2,730
A23: 18、其他政府性基金收入 | E23: 17、污水处理费相关支出 | F23: 3,000 | G23: -2,000 | I23: 1,000
E24: 18、商业服务业等支出 | I24: 0
E25: 19、债务付息支出 | F25: 30,000 | G25: -5,000 | I25: 25,000
E26: 20、其他政府性基金相关支出 | F26: 300,000 | H26: 4,000 | I26: 304,000
D28: 0 | E28: 二、上解支出 | I28: =F28+G28+H28 -> 0
A29: 二、地方专项债券 | B29: 376,000 | C29: 4,000 | D29: 380,000 | E29: 三、专项债券还本支出 | F29: 76,000 | I29: =F29+G29+H29 -> 76,000
A30: 三、基金补助收入 | B30: 5,000 | D30: 5,000 | E30: 四、政府性基金调出资金 | F30: 100,000 | G30: -75,000 | I30: =F30+G30+H30 -> 25,000
A31: 四、上年结转收入 | B31: 6,601 | D31: 6,601 | E31: 五、结转下年支出 | I31: =F31+G31+H31 -> 0
A32: 基 金 收 入 总 计 | B32: =B6+B29+B30+B31 -> 589,861 | C32: =C6++C29+C30+C31 -> -88,000 | D32: =D6++D29+D30+D31 -> 501,861 | E32: 基 金 支 出 总 计 | F32: =F6+F29+F30 -> 589,861 | G32: =G6+G29+G30 -> -92,000 | H32: 4,000 | I32: 501,861

Sheet 国有资本经营预算调整表
A1: 陆丰市2023年国有资本经营预算调整表（草案）
A3: 附表4 | H3: 单位：万元
A4: 收入项目 | B4: 年初预算数 | C4: 调整数 | D4: 调整后预算数 | E4: 支出项目 | F4: 年初预算数 | G4: 调整数 | H4: 调整后预算数
A6: 一、利润收入 | B6: 500 | D6: =B6+C6 -> 500 | E6: 一、国有资本经营预算支出 | F6: =SUM(F7:F10) -> 1,554 | G6: -1,000 | H6: =F6+G6 -> 554
A7: 二、股利、股息收入 | D7: =B7+C7 -> 0 | E7: 1、公益性设施投资补助支出 | H7: =F7+G7 -> 0
A8: 三、产权转让收入 | D8: 0 | E8: 2、支持科技进步支出 | H8: 0
A9: 1、汽运公司股权出让收入 | D9: 0 | E9: 3、改革成本支出 | F9: 254 | H9: 254
A10: 2、新华书店股权出让收入 | D10: 0 | E10: 4、其他国有资本经营预算支出 | F10: 1,300 | G10: -1,000 | H10: 300
A11: 四、清算收入 | D11: 0 | E11: 二、转移性支出
A12: 五、其他国有资本经营收入 | B12: 1,000 | C12: -1,000 | D12: 0 | E12: 1、国有资本经营预算转移支付 | H12: 0
A13: 六、国有资本经营预算转移支付收入 | D13: 0 | E13: 2、调出资金 | H13: 0
D14: 0 | H14: 0
D15: 0 | H15: 0
A16: 本年收入合计 | B16: 1,500 | C16: -1,000 | D16: 500 | E16: 本年支出合计 | F16: =F6+F11 -> 1,554 | G16: -1,000 | H16: 554
A17: 上年结转 | B17: 54 | D17: 54 | E17: 结转下年
A18: 其中：净结余 | B18: 0 | D18: 0 | E18: 其中：净结余
A19: 项目结转 | E19: 项目结转
A21: 收入总计 | B21: =B16+B17 -> 1,554 | C21: =C16+C17 -> -1,000 | D21: =D16+D17 -> 554 | E21: 支出总计 | F21: =F16+F17 -> 1,554 | G21: =G16+G17 -> -1,000 | H21: =H16+H17 -> 554

Sheet 政府性债券安排表
A1: 陆丰市2023年新增政府性债券资金安排调整表
A2: 附表5 | M2: 单位：万元
A3: 序号 | B3: 新增债券使用项目 | C3: 债券类型 | D3: 管理使用单位 | E3: 主管部门 | F3: 4月发行 | G3: 6月发行 | H3: 8月发行 | I3: 10月发行 | J3: 债券额度安排 | K3: 调整数 | L3: 调整后债券安排 | M3: 备注
A5: 1 | B5: 国道G228线陆丰上英至海丰城东段改建工程 | C5: 一般债券 | D5: 陆丰市交通运输局 | E5: 陆丰市交通运输局 | G5: 10,000 | J5: 11,000 | L5: =J5+K5 -> 11,000
A6: 2 | B6: 陆丰市乌坎村乡村振兴配套设施建设项目 | C6: 一般债券 | D6: 陆丰市东海街道办事处 | E6: 陆丰市东海街道办事处 | G6: 5,000 | J6: 5,000 | K6: -4,000 | L6: =J6+K6 -> 1,000
A7: 3 | B7: 陆丰市博社农旅融合生态农业示范园项目 | C7: 一般债券 | D7: 陆丰市甲西镇人民政府 | E7: 陆丰市甲西镇人民政府 | H7: 4,000 | J7: 4,000 | L7: 4,000
A8: 4 | B8: 2023年度30宗小型水库除险加固工程 | C8: 一般债券 | D8: 陆丰市水利工程建设管理中心 | E8: 陆丰市水务局 | J8: 7,400 | L8: 7,400
A9: 5 | B9: 陆丰市小型水库标准化建设及管理养护 | C9: 一般债券 | D9: 陆丰市水利工程建设管理中心 | E9: 陆丰市水务局 | F9: 2,000 | H9: 3,000 | J9: 600 | L9: 600
A10: 6 | B10: 国道228线甲子至南塘段改建工程 | C10: 一般债券 | D10: 陆丰市交通运输局 | E10: 陆丰市交通运输局 | F10: 2,000 | H10: 3,500 | I10: 2,500 | J10: 0 | K10: 3,400 | L10: 3,400
A11: 7 | B11: 陆丰市甲港公路配套工程 | C11: 一般债券 | D11: 陆丰市交通运输局 | E11: 陆丰市交通运输局 | F11: 3,000 | H11: 5,500 | I11: 3,500 | J11: 0 | K11: 600 | L11: 600
A12: 8 | B12: 陆丰市行政新区幼儿园建设项目 | C12: 专项债券 | D12: 陆丰市教育局 | E12: 陆丰市教育局 | G12: 5,000 | J12: 1,000 | L12: 1,000
A13: 9 | B13: 陆丰市乡镇公立幼儿园补短板建设项目（二期） | C13: 专项债券 | D13: 陆丰市教育局 | E13: 陆丰市教育局 | J13: 6,000 | L13: 6,000
A14: 10 | B14: 陆丰市碣石镇玄武山自来水厂扩容提质及老旧管道改造工程项目 | C14: 专项债券 | D14: 陆丰市碣石镇人民政府 | E14: 陆丰市碣石镇人民政府 | J14: 3,000 | K14: -1,200 | L14: 1,800
A15: 11 | B15: 陆丰市三甲地区工业园区基础设施项 目 | C15: 专项债券 | D15: 陆丰市市政建设投资有限公司 | E15: 陆丰市甲东镇人民政府 | J15: 3,000 | L15: 3,000
A16: 12 | B16: 陆丰东海经济开发区产业园区二期基础设施配套建设项目 | C16: 专项债券 | D16: 广东陆丰东海经济开发区管理委员会 | E16: 广东陆丰东海经济开发区管理委员会 | J16: 3,000 | L16: 3,000
A17: 13 | B17: 陆丰市碣石产业园（一期）建设项目 | C17: 专项债券 | D17: 陆丰市碣石镇人民政府 | E17: 陆丰市碣石镇人民政府 | J17: 3,000 | L17: 3,000
A18: 14 | B18: 陆丰市冷链物资仓库新建项目 | C18: 专项债券 | D18: 陆丰市粮食和物资储备局 | E18: 陆丰市发展和改革局 | J18: 2,000 | L18: 2,000
A19: 15 | B19: 陆丰市农贸市场升级改造建设项目 | C19: 专项债券 | D19: 陆丰市市场监督管理局 | E19: 陆丰市市场监督管理局 | J19: 5,000 | K19: -3,000 | L19: 2,000
A20: 16 | B20: 2021年度汕尾市陆丰市湖东镇曲清村及河西镇汾河村垦造水田项目 | C20: 专项债券 | D20: 陆丰市自然资源整治开发中心 | E20: 陆丰市自然资源局 | J20: 5,000 | L20: 5,000
A21: 17 | B21: 陆丰市城东镇农村产业基础设施提升项目 | C21: 专项债券 | D21: 陆丰市城东街道办事处 | E21: 陆丰市城东街道办事处 | J21: 5,000 | K21: -1,900 | L21: 3,100
A22: 18 | B22: 陆丰市渔港经济区甲子渔港核心区建设工程项目 | C22: 专项债券 | D22: 陆丰市甲子镇人民政府 | E22: 陆丰市甲子镇人民政府 | J22: 5,000 | L22: 5,000
A23: 19 | B23: 陆丰市金厢镇十二岗村乡村振兴配套基础设施建设工程 | C23: 专项债券 | D23: 陆丰市金厢镇人民政府 | E23: 陆丰市金厢镇人民政府 | J23: 2,500 | L23: 2,500
A24: 20 | B24: 星都经济开发区产业园区基础设施配套工程（二期） | C24: 专项债券 | D24: 陆丰星都管理办公室 | E24: 陆丰星都管理办公室 | J24: 7,100 | L24: 7,100
A25: 21 | B25: 陆丰市螺河（陆丰段）流域水环境综合整治工程 | C25: 专项债券 | D25: 陆丰市水利工程建设管理中心 | E25: 陆丰市水务局 | J25: 16,000 | L25: 16,000
A26: 22 | B26: 陆丰市碣石海工基地（二期）项目 | C26: 专项债券 | D26: 陆丰市碣石临港工业园开发有限公司 | E26: 陆丰市科技工业和信息化局 | J26: 3,000 | L26: 3,000
A27: 23 | B27: 陆丰市碣石海工基地（三期）项目 | C27: 专项债券 | D27: 陆丰市碣石临港工业园开发有限公司 | E27: 陆丰市科技工业和信息化局 | J27: 4,000 | L27: 4,000
A28: 24 | B28: 汕尾市新材料产业园（一期）基础设施建设项目 | C28: 专项债券 | D28: 陆丰市科技工业和信息化局 | E28: 陆丰市科技工业和信息化局 | G28: 5,000 | J28: 5,000 | K28: -5,000 | L28: 0
A29: 25 | B29: 陆丰市第二污水处理厂（一期）工程及配套管网工程 | C29: 专项债券 | D29: 陆丰市住房和城乡建设局 | E29: 陆丰市住房和城乡建设局 | G29: 5,000 | H29: 15,000 | I29: 5,000 | J29: 10,000 | L29: 10,000
A30: 26 | B30: 陆丰市文化创意产业园片区基础设施项目 | C30: 专项债券 | D30: 陆丰市住房和城乡建设局 | E30: 陆丰市住房和城乡建设局 | G30: 2,000 | H30: 4,000 | I30: 1,500 | J30: 5,000 | L30: 5,000
A31: 27 | B31: 陆丰市高铁枢纽一体化建设工程 | C31: 专项债券 | D31: 陆丰市交通运输局 | E31: 陆丰市交通运输局 | G31: 2,000 | H31: 15,000 | I31: 8,000 | J31: 82,000 | K31: 5,000 | L31: 87,000
A32: 28 | B32: 陆丰市高质量推进农村生活污水治理项目 | C32: 专项债券 | D32: 陆丰市住房和城乡建设局 | E32: 陆丰市住房和城乡建设局 | H32: 2,500 | I32: 2,500 | J32: 13,000 | K32: 1,100 | L32: 14,100
A33: 29 | B33: 陆丰市预制菜产业园建设项目 | C33: 专项债券 | D33: 陆丰市农业农村局 | E33: 陆丰市农业农村局 | H33: 7,500 | I33: 7,500 | J33: 2,200 | L33: 2,200
A34: 30 | B34: 陆丰市金厢渔港建设项目 | C34: 专项债券 | D34: 陆丰市农业农村局 | E34: 陆丰市农业农村局 | H34: 15,000 | I34: 10,000 | J34: 5,000 | L34: 5,000
A35: 31 | B35: 陆丰市乡村振兴滨海走廊示范带建设工程项目 | C35: 专项债券 | D35: 陆丰市农业农村局 | E35: 陆丰市农业农村局 | H35: 3,400 | I35: 1,600 | J35: 5,000 | L35: 5,000
A36: 32 | B36: 陆丰市乡村振兴人居环境提升建设工程 | C36: 专项债券 | D36: 陆丰市农业农村局 | E36: 陆丰市农业农村局 | I36: 2,000 | J36: 31,000 | L36: 31,000
A37: 33 | B37: 陆丰市乡村振兴共同富裕示范带建设工程项目 | C37: 专项债券 | D37: 陆丰市农业农村局 | E37: 陆丰市农业农村局 | I37: 20,000 | J37: 16,000 | L37: 16,000
A38: 34 | B38: 陆丰市第五人民医院及应急医疗体系建设工程 | C38: 专项债券 | D38: 陆丰市卫生健康局 | E38: 陆丰市卫生健康局 | J38: 12,000 | L38: 12,000
A39: 35 | B39: 陆丰市人民医院外科综合楼建设项目 | C39: 专项债券 | D39: 陆丰市人民医院 | E39: 陆丰市卫生健康局 | J39: 2,000 | L39: 2,000
A40: 36 | B40: 陆丰市高级技工学校新建项目 | C40: 专项债券 | D40: 陆丰市人力资源和社会保障局 | E40: 陆丰市人力资源和社会保障局 | J40: 15,200 | L40: 15,200
A41: 37 | B41: 陆丰市碣石人民医院升级建设项 目 | C41: 专项债券 | D41: 陆丰市碣石人民医院 | E41: 陆丰市卫生健康局 | J41: 3,000 | L41: 3,000
A42: 38 | B42: 陆丰市人民医院传染病区建设项目 | C42: 专项债券 | D42: 陆丰市人民医院 | E42: 陆丰市卫生健康局 | J42: 3,000 | L42: 3,000
A43: 39 | B43: 陆丰产业转移工业园（省级）基础设施建设项目 | C43: 专项债券 | D43: 陆丰市住房和城乡建设局 | E43: 陆丰市住房和城乡建设局 | J43: 6,000 | L43: 6,000
A44: 40 | B44: 陆丰市乡镇公立幼儿园补短板建设项目 | C44: 专项债券 | D44: 陆丰市教育局 | E44: 陆丰市教育局 | J44: 1,000 | L44: 1,000
A45: 41 | B45: 陆丰市螺河至碣石引水工程 | C45: 专项债券 | D45: 陆丰市城乡供水有限公司 | E45: 陆丰市水务局 | J45: 4,000 | K45: 3,000 | L45: 7,000
A46: 42 | B46: 陆丰市龙潭灌区续建配套与节水改造工程 | C46: 专项债券 | D46: 陆丰市龙潭灌区管理局 | E46: 陆丰市水务局 | J46: 3,000 | L46: 3,000
A47: 43 | B47: 陆丰市第二职业技术学校新建产教融合大楼、学生宿舍楼、大礼堂（兼容艺术楼）项目 | C47: 专项债券 | D47: 陆丰市教育局 | E47: 陆丰市教育局 | J47: 1,000 | L47: 1,000
A48: 44 | B48: 陆丰市乌坎滨海旅游环境综合整治项目 | C48: 专项债券 | D48: 陆丰市东海街道办事处 | E48: 陆丰市东海街道办事处 | J48: 1,000 | L48: 1,000
A49: 45 | B49: 陆丰市城区雨污分流及排水系统整治工程 | C49: 专项债券 | D49: 陆丰市住房和城乡建设局 | E49: 陆丰市住房和城乡建设局 | J49: 5,000 | L49: 5,000
A50: 46 | B50: 陆丰市东海镇老旧小区综合改造项目 | C50: 专项债券 | D50: 陆丰市东海街道办事处 | E50: 陆丰市东海街道办事处 | J50: 0 | K50: 1,000 | L50: 1,000
A51: 47 | B51: 陆丰市职业艺体特色教育提质升级项目 | C51: 专项债券 | D51: 陆丰市教育局 | E51: 陆丰市教育局 | J51: 0 | K51: 1,000 | L51: 1,000
A52: 合 计 | F52: =SUM(F5:F51) -> 7,000 | G52: =SUM(G5:G51) -> 34,000 | H52: =SUM(H5:H51) -> 78,400 | I52: =SUM(I5:I51) -> 64,100 | J52: =SUM(J5:J51) -> 332,000 | K52: 0 | L52: =SUM(L5:L51) -> 332,000
